fUST/lending_fUST_20240801
["ID","MTS","AMOUNT","RATE_DAILY","PERIOD"]
[333799079,1722519049409,-500.0,0.0001452,2]
[333799080,1722519049419,-828.41,0.0001452,2]
[333799081,1722519049429,-500.0,0.0001452,2]
[333799082,1722519049439,-500.0,0.0001452,2]
[333799083,1722519049449,-614.52,0.0001452,2]
[333799084,1722519049459,-674.82,0.0001452,2]
[333799085,1722519049469,-544.68,0.0001452,2]
[333799086,1722519049478,-1265.88,0.0001452,2]
[333799087,1722519049488,-500.0,0.0001452,2]
[333799088,1722519049499,-500.0,0.0001452,2]
[333799089,1722519049508,-637.46,0.0001452,2]
[333799090,1722519049518,-1181.36,0.0001452,2]
[333799091,1722519049527,-500.0,0.0001452,2]
[333799092,1722519049537,-603.49,0.0001452,2]
[333799093,1722519049547,-951.21,0.0001452,2]
[333799094,1722519049556,-500.0,0.0001452,2]
[333799095,1722519049565,-1046.36,0.0001452,2]
[333799096,1722519049575,-500.0,0.0001452,2]
[333799097,1722519049585,-3145.38,0.0001452,2]
[333799098,1722519049595,-500.0,0.0001452,2]
[333799099,1722519049605,-2231.75,0.0001452,2]
[333799100,1722519049615,-1245.41,0.0001452,2]
[333799101,1722519049624,-555.94,0.0001452,2]
[333799102,1722519049634,-500.0,0.0001452,2]
[333799103,1722519049644,-635.22,0.0001452,2]
[333799104,1722519049654,-669.55,0.0001452,2]
[333799105,1722519049663,-918.83,0.0001452,2]
[333799106,1722519049673,-500.0,0.0001452,2]
[333799107,1722519049683,-623.05,0.0001452,2]
[333799108,1722519049693,-500.0,0.0001452,2]
[333799109,1722519049702,-500.0,0.0001452,2]
[333799110,1722519049713,-500.0,0.0001452,2]
[333799111,1722519049722,-500.0,0.0001452,2]
[333799112,1722519049733,-500.0,0.0001452,2]
[333799113,1722519049743,-500.0,0.0001452,2]
[333799114,1722519049753,-500.0,0.0001452,2]
[333799115,1722519049763,-903.86,0.0001452,2]
[333799116,1722519049773,-729.54,0.0001452,2]
[333799117,1722519049783,-790.04,0.0001452,2]
[333799118,1722519049793,-500.0,0.0001452,2]
[333799119,1722519049804,-548.12,0.0001452,2]
[333799120,1722519049814,-1663.76,0.0001452,2]
[333799121,1722519049824,-261.356017,0.00014543,2]
[333799122,1722519049833,-227.687499,0.00014543,2]
[333799123,1722519049842,-261.15018643,0.0001469,2]
[333799124,1722519049852,-816.07415827,0.0001469,2]
[333799125,1722519049862,-527.09552675,0.0001469,2]
[333799126,1722519049871,-194.52699436,0.0001469,2]
[333799127,1722519049881,-1091.36515182,0.0001469,2]
[333799128,1722519049891,-473.887496,0.0001469,2]
[333799129,1722519049901,-7969.36638871,0.0001469,2]
[333799130,1722519049911,-100000.0,0.0001469,2]
[333799131,1722519049921,-30000.0,0.0001469,2]
[333799132,1722519049931,-185.416781,0.00014721,2]
[333799133,1722519049941,-261.356017,0.00014722,2]
[333799134,1722519049951,-227.687499,0.00014722,2]
[333799135,1722519049965,-600.0,0.00014728,2]
[333799136,1722519049974,-521.96,0.00014794,2]
[333799137,1722519049984,-500.0,0.00014794,2]
[333799138,1722519049993,-500.0,0.00014794,2]
[333799139,1722519050003,-500.0,0.00014794,2]
[333799140,1722519050092,-500.0,0.00014794,2]
[333799141,1722519050102,-500.0,0.00014794,2]
[333799142,1722519050111,-900.47,0.00014794,2]
[333799143,1722519050120,-500.0,0.00014794,2]
[333799144,1722519050130,-589.76,0.00014794,2]
[333799145,1722519050140,-500.0,0.00014794,2]
[333799146,1722519050149,-500.0,0.00014794,2]
[333799147,1722519050158,-500.0,0.00014794,2]
[333799148,1722519050167,-500.0,0.00014794,2]
[333799149,1722519050176,-576.95,0.00014794,2]
[333799150,1722519050185,-500.0,0.00014794,2]
[333799151,1722519050196,-500.0,0.00014794,2]
[333799152,1722519050205,-659.27,0.00014794,2]
[333799153,1722519050214,-500.0,0.00014794,2]
[333799154,1722519050223,-500.0,0.00014794,2]
[333799155,1722519050232,-500.0,0.00014794,2]
[333799156,1722519050242,-500.0,0.00014794,2]
[333799157,1722519050251,-585.06,0.00014794,2]
[333799158,1722519050260,-500.0,0.00014794,2]
[333799159,1722519050269,-500.0,0.00014794,2]
[333799160,1722519050278,-919.25,0.00014794,2]
[333799161,1722519050287,-500.0,0.00014794,2]
[333799162,1722519050301,-945.95,0.00014794,2]
[333799163,1722519050310,-500.0,0.00014794,2]
[333799164,1722519050319,-500.0,0.00014794,2]
[333799165,1722519050328,-500.0,0.00014794,2]
[333799166,1722519050338,-715.24,0.00014794,2]
[333799167,1722519050347,-1912.43,0.00014794,2]
[333799168,1722519050357,-653.6,0.00014794,2]
[333799169,1722519050366,-2780.23,0.00014794,2]
[333799170,1722519050375,-985.53,0.00014794,2]
[333799171,1722519050385,-500.0,0.00014794,2]
[333799172,1722519050394,-3999.94,0.00014794,2]
[333799173,1722519050403,-500.0,0.00014794,2]
[333799174,1722519050412,-658.78,0.00014794,2]
[333799175,1722519050424,-500.0,0.00014794,2]
[333799176,1722519050433,-3483.39,0.00014794,2]
[333799177,1722519050443,-513.87,0.00014794,2]
[333799178,1722519050452,-500.0,0.00014794,2]
[333799179,1722519050461,-828.41,0.00014794,2]
[333799180,1722519050470,-500.0,0.00014794,2]
[333799181,1722519050479,-674.82,0.00014794,2]
[333799182,1722519050489,-614.52,0.00014794,2]
[333799183,1722519050498,-544.68,0.00014794,2]
[333799184,1722519050507,-500.0,0.00014794,2]
[333799185,1722519050516,-1265.88,0.00014794,2]
[333799186,1722519050526,-500.0,0.00014794,2]
[333799187,1722519050535,-500.0,0.00014794,2]
[333799188,1722519050544,-637.46,0.00014794,2]
[333799189,1722519050553,-1181.36,0.00014794,2]
[333799190,1722519050563,-500.0,0.00014794,2]
[333799191,1722519050572,-603.49,0.00014794,2]
[333799192,1722519050581,-951.21,0.00014794,2]
[333799193,1722519050590,-500.0,0.00014794,2]
[333799194,1722519050600,-1046.36,0.00014794,2]
[333799195,1722519050609,-500.0,0.00014794,2]
[333799196,1722519050618,-3145.38,0.00014794,2]
[333799197,1722519050627,-500.0,0.00014794,2]
[333799198,1722519050637,-2231.75,0.00014794,2]
[333799199,1722519050646,-1245.41,0.00014794,2]
[333799200,1722519050656,-555.94,0.00014794,2]
[333799201,1722519050666,-500.0,0.00014794,2]
[333799202,1722519050675,-635.22,0.00014794,2]
[333799203,1722519050685,-669.55,0.00014794,2]
[333799204,1722519050696,-918.83,0.00014794,2]
[333799205,1722519050705,-500.0,0.00014794,2]
[333799206,1722519050715,-623.05,0.00014794,2]
[333799207,1722519050724,-500.0,0.00014794,2]
[333799208,1722519050737,-500.0,0.00014794,2]
[333799209,1722519050746,-500.0,0.00014794,2]
[333799210,1722519050756,-500.0,0.00014794,2]
[333799211,1722519050765,-500.0,0.00014794,2]
[333799212,1722519050774,-500.0,0.00014794,2]
[333799213,1722519050783,-903.86,0.00014794,2]
[333799214,1722519050793,-729.54,0.00014794,2]
[333799215,1722519050802,-790.04,0.00014794,2]
[333799216,1722519050812,-500.0,0.00014794,2]
[333799217,1722519050822,-548.12,0.00014794,2]
[333799218,1722519050833,-1663.76,0.00014794,2]
[333799219,1722519050843,-600.0,0.00014882,2]
[333799220,1722519050852,-261.356017,0.00014902,2]
[333799221,1722519050862,-227.687499,0.00014902,2]
[333799222,1722519050872,-420.0,0.00014957,2]
[333799223,1722519050882,-1516.70086714,0.00015,2]
[333799224,1722519050891,-1000.0,0.00015,15]
[333799225,1722519050900,-4858.84679641,0.00015,7]
[333799226,1722519050910,-185.74473794,0.00015,2]
[333799227,1722519050920,-2847.40036017,0.00015,2]
[333799228,1722519050930,-600.0,0.00015035,2]
[333799229,1722519050939,-668.65368038,0.00015067,2]
[333799230,1722519050952,-521.96,0.00015068,2]
[333799231,1722519050965,-500.0,0.00015068,2]
[333799232,1722519050975,-610.60471447,0.00015068,2]
[333799233,1722519050985,-500.0,0.00015068,2]
[333799234,1722519050995,-500.0,0.00015068,2]
[333799235,1722519051007,-500.0,0.00015068,2]
[333799236,1722519051017,-900.47,0.00015068,2]
[333799237,1722519051027,-500.0,0.00015068,2]
[333799238,1722519051038,-589.76,0.00015068,2]
[333799239,1722519051048,-500.0,0.00015068,2]
[333799240,1722519051057,-500.0,0.00015068,2]
[333799241,1722519051067,-500.0,0.00015068,2]
[333799242,1722519051077,-500.0,0.00015068,2]
[333799243,1722519051086,-576.95,0.00015068,2]
[333799244,1722519051096,-500.0,0.00015068,2]
[333799245,1722519051105,-500.0,0.00015068,2]
[333799246,1722519051115,-659.27,0.00015068,2]
[333799247,1722519051124,-500.0,0.00015068,2]
[333799248,1722519051134,-346.43905699,0.00015068,2]
[333799249,1722519051143,-500.0,0.00015068,2]
[333799250,1722519051153,-500.0,0.00015068,2]
[333799251,1722519051163,-585.06,0.00015068,2]
[333799252,1722519051172,-500.0,0.00015068,2]
[333799253,1722519051182,-500.0,0.00015068,2]
[333799254,1722519051191,-919.25,0.00015068,2]
[333799255,1722519051207,-500.0,0.00015068,2]
[333799256,1722519051216,-945.95,0.00015068,2]
[333799257,1722519051226,-500.0,0.00015068,2]
[333799258,1722519051235,-500.0,0.00015068,2]
[333799259,1722519051244,-500.0,0.00015068,2]
[333799260,1722519051253,-715.24,0.00015068,2]
[333799261,1722519051262,-1912.43,0.00015068,2]
[333799262,1722519051271,-653.6,0.00015068,2]
[333799263,1722519051280,-2780.23,0.00015068,2]
[333799264,1722519051290,-985.53,0.00015068,2]
[333799265,1722519051298,-325.06386117,0.00015068,2]
[333799266,1722519051308,-3999.94,0.00015068,2]
[333799267,1722519051318,-500.0,0.00015068,2]
[333799268,1722519051327,-658.78,0.00015068,2]
[333799269,1722519051337,-500.0,0.00015068,2]
[333799270,1722519051347,-3483.39,0.00015068,2]
[333799271,1722519051356,-513.87,0.00015068,2]
[333799272,1722519051366,-500.0,0.00015068,2]
[333799273,1722519051375,-828.41,0.00015068,2]
[333799274,1722519051385,-500.0,0.00015068,2]
[333799275,1722519051395,-674.82,0.00015068,2]
[333799276,1722519051405,-614.52,0.00015068,2]
[333799277,1722519051415,-544.68,0.00015068,2]
[333799278,1722519051425,-500.0,0.00015068,2]
[333799279,1722519051434,-1265.88,0.00015068,2]
[333799280,1722519051446,-500.0,0.00015068,2]
[333799281,1722519051455,-500.0,0.00015068,2]
[333799282,1722519051465,-637.46,0.00015068,2]
[333799283,1722519051475,-500.0,0.00015068,2]
[333799284,1722519051484,-1181.36,0.00015068,2]
[333799285,1722519051493,-603.49,0.00015068,2]
[333799286,1722519051502,-951.21,0.00015068,2]
[333799287,1722519051511,-500.0,0.00015068,2]
[333799288,1722519051521,-1046.36,0.00015068,2]
[333799289,1722519051531,-500.0,0.00015068,2]
[333799290,1722519051540,-3145.38,0.00015068,2]
[333799291,1722519051549,-500.0,0.00015068,2]
[333799292,1722519051558,-2231.75,0.00015068,2]
[333799293,1722519051568,-1245.41,0.00015068,2]
[333799294,1722519051577,-555.94,0.00015068,2]
[333799295,1722519051586,-500.0,0.00015068,2]
[333799296,1722519051595,-635.22,0.00015068,2]
[333799297,1722519051605,-669.55,0.00015068,2]
[333799298,1722519051614,-918.83,0.00015068,2]
[333799299,1722519051623,-500.0,0.00015068,2]
[333799300,1722519051633,-623.05,0.00015068,2]
[333799301,1722519051643,-500.0,0.00015068,2]
[333799302,1722519051652,-500.0,0.00015068,2]
[333799303,1722519051662,-500.0,0.00015068,2]
[333799304,1722519051745,-500.0,0.00015068,2]
[333799305,1722519051755,-500.0,0.00015068,2]
[333799306,1722519051765,-500.0,0.00015068,2]
[333799307,1722519051775,-903.86,0.00015068,2]
[333799308,1722519051784,-729.54,0.00015068,2]
[333799309,1722519051794,-790.04,0.00015068,2]
[333799310,1722519051804,-500.0,0.00015068,2]
[333799311,1722519051814,-548.12,0.00015068,2]
[333799312,1722519051824,-1663.76,0.00015068,2]
[333799313,1722519051835,-176.841991,0.0001508,2]
[333799314,1722519051844,-185.416781,0.0001508,2]
[333799315,1722519051854,-261.356017,0.00015082,2]
[333799316,1722519051863,-227.687499,0.00015082,2]
[333799317,1722519051873,-153.0,0.00015086,2]
[333799318,1722519051882,-301.984035,0.00015086,2]
[333799319,1722519051892,-294.1746601,0.00015086,2]
[333799320,1722519051901,-220.4228901,0.00015086,2]
[333799321,1722519051911,-154.4020047,0.00015086,2]
[333799322,1722519051921,-393.94545662,0.00015177,2]
[333799323,1722519051931,-940.43707948,0.00015189,2]
[333799324,1722519051940,-400.0,0.00015231,2]
[333799325,1722519051953,-521.96,0.00015342,2]
[333799326,1722519051967,-500.0,0.00015342,2]
[333799327,1722519051977,-500.0,0.00015342,2]
[333799328,1722519051986,-500.0,0.00015342,2]
[333799329,1722519051998,-500.0,0.00015342,2]
[333799330,1722519052007,-900.47,0.00015342,2]
[333799331,1722519052017,-500.0,0.00015342,2]
[333799332,1722519052026,-589.76,0.00015342,2]
[333799333,1722519052038,-500.0,0.00015342,2]
[333799334,1722519052048,-500.0,0.00015342,2]
[333799335,1722519052058,-500.0,0.00015342,2]
[333799336,1722519052067,-500.0,0.00015342,2]
[333799337,1722519052077,-576.95,0.00015342,2]
[333799338,1722519052086,-500.0,0.00015342,2]
[333799339,1722519052096,-500.0,0.00015342,2]
[333799340,1722519052106,-659.27,0.00015342,2]
[333799341,1722519052115,-500.0,0.00015342,2]
[333799342,1722519052125,-500.0,0.00015342,2]
[333799343,1722519052135,-500.0,0.00015342,2]
[333799344,1722519052144,-585.06,0.00015342,2]
[333799345,1722519052153,-500.0,0.00015342,2]
[333799346,1722519052163,-500.0,0.00015342,2]
[333799347,1722519052173,-919.25,0.00015342,2]
[333799348,1722519052182,-500.0,0.00015342,2]
[333799349,1722519052195,-945.95,0.00015342,2]
[333799350,1722519052205,-500.0,0.00015342,2]
[333799351,1722519052215,-500.0,0.00015342,2]
[333799352,1722519052225,-500.0,0.00015342,2]
[333799353,1722519052235,-715.24,0.00015342,2]
[333799354,1722519052243,-1912.43,0.00015342,2]
[333799355,1722519052253,-653.6,0.00015342,2]
[333799356,1722519052262,-2780.23,0.00015342,2]
[333799357,1722519052272,-985.53,0.00015342,2]
[333799358,1722519052282,-3999.94,0.00015342,2]
[333799359,1722519052292,-500.0,0.00015342,2]
[333799360,1722519052302,-658.78,0.00015342,2]
[333799361,1722519052311,-500.0,0.00015342,2]
[333799362,1722519052320,-3483.39,0.00015342,2]
[333799363,1722519052329,-513.87,0.00015342,2]
[333799364,1722519052339,-500.0,0.00015342,2]
[333799365,1722519052349,-828.41,0.00015342,2]
[333799366,1722519052358,-500.0,0.00015342,2]
[333799367,1722519052368,-674.82,0.00015342,2]
[333799368,1722519052378,-614.52,0.00015342,2]
[333799369,1722519052388,-544.68,0.00015342,2]
[333799370,1722519052398,-500.0,0.00015342,2]
[333799371,1722519052408,-1265.88,0.00015342,2]
[333799372,1722519052417,-500.0,0.00015342,2]
[333799373,1722519052427,-500.0,0.00015342,2]
[333799374,1722519052437,-637.46,0.00015342,2]
[333799375,1722519052450,-500.0,0.00015342,2]
[333799376,1722519052460,-1181.36,0.00015342,2]
[333799377,1722519052470,-603.49,0.00015342,2]
[333799378,1722519052480,-951.21,0.00015342,2]
[333799379,1722519052489,-500.0,0.00015342,2]
[333799380,1722519052499,-1046.36,0.00015342,2]
[333799381,1722519052509,-3145.38,0.00015342,2]
[333799382,1722519052518,-500.0,0.00015342,2]
[333799383,1722519052527,-500.0,0.00015342,2]
[333799384,1722519052536,-2231.75,0.00015342,2]
[333799385,1722519052546,-1245.41,0.00015342,2]
[333799386,1722519052556,-555.94,0.00015342,2]
[333799387,1722519052565,-500.0,0.00015342,2]
[333799388,1722519052574,-635.22,0.00015342,2]
[333799389,1722519052584,-669.55,0.00015342,2]
[333799390,1722519052593,-918.83,0.00015342,2]
[333799391,1722519052603,-500.0,0.00015342,2]
[333799392,1722519052612,-623.05,0.00015342,2]
[333799393,1722519052622,-603.66053025,0.00015342,2]
[333799394,1722519052631,-500.0,0.00015342,2]
[333799395,1722519052640,-500.0,0.00015342,2]
[333799396,1722519052649,-500.0,0.00015342,2]
[333799397,1722519052659,-211.39967302,0.00015342,2]
[333799398,1722519052668,-500.0,0.00015342,2]
[333799399,1722519052677,-903.86,0.00015342,2]
[333799400,1722519052687,-729.54,0.00015342,2]
[333799401,1722519052698,-790.04,0.00015342,2]
[333799402,1722519052707,-500.0,0.00015342,2]
[333799403,1722519052717,-548.12,0.00015342,2]
[333799404,1722519052727,-1663.76,0.00015342,2]
[333799405,1722519052736,-2470.75829437,0.00015443,2]
[333799406,1722519052745,-1000.0,0.000155,2]
[333799407,1722519052755,-679.98495649,0.00015577,2]
[333799408,1722519052764,-2738.47,0.00015616,2]
[333799409,1722519052773,-521.96,0.00015616,2]
[333799410,1722519052783,-500.0,0.00015616,2]
[333799411,1722519052792,-500.0,0.00015616,2]
[333799412,1722519052801,-187.52399796,0.00015616,2]
[333799413,1722519052811,-500.0,0.00015616,2]
[333799414,1722519052820,-900.47,0.00015616,2]
[333799415,1722519052830,-500.0,0.00015616,2]
[333799416,1722519052839,-589.76,0.00015616,2]
[333799417,1722519052848,-500.0,0.00015616,2]
[333799418,1722519052858,-500.0,0.00015616,2]
[333799419,1722519052868,-500.0,0.00015616,2]
[333799420,1722519052877,-500.0,0.00015616,2]
[333799421,1722519052887,-576.95,0.00015616,2]
[333799422,1722519052896,-500.0,0.00015616,2]
[333799423,1722519052906,-500.0,0.00015616,2]
[333799424,1722519052916,-659.27,0.00015616,2]
[333799425,1722519052925,-414.69031556,0.00015616,2]
[333799426,1722519052934,-500.0,0.00015616,2]
[333799427,1722519052945,-306.1540175,0.00015616,2]
[333799428,1722519052955,-585.06,0.00015616,2]
[333799429,1722519052971,-500.0,0.00015616,2]
[333799430,1722519052981,-500.0,0.00015616,2]
[333799431,1722519052992,-919.25,0.00015616,2]
[333799432,1722519053005,-178.12318489,0.00015616,2]
[333799433,1722519053016,-945.95,0.00015616,2]
[333799434,1722519053026,-500.0,0.00015616,2]
[333799435,1722519053036,-500.0,0.00015616,2]
[333799436,1722519053052,-500.0,0.00015616,2]
[333799437,1722519053062,-715.24,0.00015616,2]
[333799438,1722519053072,-1912.43,0.00015616,2]
[333799439,1722519053083,-653.6,0.00015616,2]
[333799440,1722519053092,-2780.23,0.00015616,2]
[333799441,1722519053102,-985.53,0.00015616,2]
[333799442,1722519053111,-1267.6549258,0.00015616,2]
[333799443,1722519053445,-337.70358,0.00013688,5]
[333799451,1722520025250,285.88626321,0.0001,2]
[333799452,1722520102030,2864.78299902,0.0001,2]
[333799455,1722520154287,273.37336231,9.9e-05,2]
[333799456,1722520190979,1492.55194249,0.0001,2]
[333799500,1722520232495,-164.153976,0.00012162,2]
[333799502,1722520232505,-3131.4706708,0.00012332,2]
[333799504,1722520232514,-174.691855,0.00012986,2]
[333799506,1722520232524,-164.153976,0.00012991,2]
[333799508,1722520232533,-300.00000013,0.00013687,2]
[333799510,1722520232543,-300.0,0.00013697,2]
[333799512,1722520232552,-500.0,0.00013698,2]
[333799514,1722520232562,-505.94128905,0.00013698,2]
[333799516,1722520232572,-303.47362636,0.00013698,2]
[333799518,1722520232582,-597.72529334,0.00013698,2]
[333799520,1722520232591,-500.0,0.00013698,2]
[333799522,1722520232602,-500.0,0.00013698,2]
[333799524,1722520232611,-389.54919772,0.00013698,2]
[333799526,1722520232621,-500.0,0.00013698,2]
[333799528,1722520232631,-500.0,0.00013698,2]
[333799530,1722520232640,-500.0,0.00013698,2]
[333799532,1722520232649,-500.0,0.00013698,2]
[333799534,1722520232659,-500.0,0.00013698,2]
[333799536,1722520232669,-500.0,0.00013698,2]
[333799538,1722520232678,-500.0,0.00013698,2]
[333799540,1722520232690,-347.22184471,0.00013698,2]
[333799542,1722520232700,-500.0,0.00013698,2]
[333799544,1722520232710,-500.0,0.00013698,2]
[333799546,1722520232720,-500.0,0.00013698,2]
[333799548,1722520232729,-500.0,0.00013698,2]
[333799550,1722520232740,-503.02090261,0.00013698,2]
[333799552,1722520232750,-464.90049769,0.00013698,2]
[333799554,1722520232759,-500.0,0.00013698,2]
[333799556,1722520232770,-508.66921285,0.00013698,2]
[333799558,1722520232779,-500.0,0.00013698,2]
[333799560,1722520232789,-500.0,0.00013698,2]
[333799563,1722520232799,-612.83,0.00013698,2]
[333799565,1722520232809,-500.0,0.00013698,2]
[333799567,1722520232819,-470.01058235,0.00013698,2]
[333799569,1722520232828,-500.0,0.00013698,2]
[333799570,1722520232838,-500.0,0.00013698,2]
[333799572,1722520232847,-500.0,0.00013698,2]
[333799574,1722520232857,-500.0,0.00013698,2]
[333799576,1722520232866,-501.03909665,0.00013698,2]
[333799578,1722520232875,-500.0,0.00013698,2]
[333799580,1722520232884,-500.0,0.00013698,2]
[333799583,1722520232894,-630.63,0.00013698,2]
[333799585,1722520232905,-500.0,0.00013698,2]
[333799587,1722520232915,-17.55863096,0.00013698,2]
[333799667,1722520243463,-1492.55194249,0.00012121,2]
[333799668,1722520243474,-349.40735666,0.00013698,2]
[333799669,1722520243497,-173.40622975,0.00013698,2]
[333799670,1722520243507,-291.99152988,0.00013698,2]
[333799671,1722520243517,-500.0,0.00013698,2]
[333799672,1722520243527,-500.0,0.00013698,2]
[333799673,1722520243537,-500.0,0.00013698,2]
[333799674,1722520243547,-527.44,0.00013698,2]
[333799675,1722520243557,-500.0,0.00013698,2]
[333799676,1722520243568,-1853.48,0.00013698,2]
[333799677,1722520243578,-500.0,0.00013698,2]
[333799678,1722520243588,-500.0,0.00013698,2]
[333799679,1722520243597,-500.0,0.00013698,2]
[333799680,1722520243607,-657.02,0.00013698,2]
[333799681,1722520243616,-896.66,0.00013698,2]
[333799682,1722520243626,-500.0,0.00013698,2]
[333799683,1722520243635,-2467.4,0.00013698,2]
[333799684,1722520243645,-500.0,0.00013698,2]
[333799685,1722520243655,-500.0,0.00013698,2]
[333799686,1722520243664,-500.0,0.00013698,2]
[333799687,1722520243674,-586.79,0.00013698,2]
[333799688,1722520243684,-500.0,0.00013698,2]
[333799689,1722520243694,-500.0,0.00013698,2]
[333799690,1722520243704,-500.0,0.00013698,2]
[333799691,1722520243717,-500.0,0.00013698,2]
[333799692,1722520243726,-500.0,0.00013698,2]
[333799693,1722520243736,-500.0,0.00013698,2]
[333799694,1722520243745,-500.0,0.00013698,2]
[333799695,1722520243755,-650.84,0.00013698,2]
[333799696,1722520243765,-836.8,0.00013698,2]
[333799697,1722520243774,-500.0,0.00013698,2]
[333799698,1722520243784,-500.0,0.00013698,2]
[333799699,1722520243793,-882.16,0.00013698,2]
[333799700,1722520243803,-516.76,0.00013698,2]
[333799701,1722520243813,-500.0,0.00013698,2]
[333799702,1722520243822,-244.40605985,0.00013698,2]
[333799703,1722520243832,-694.61,0.00013698,2]
[333799704,1722520243842,-500.0,0.00013698,2]
[333799705,1722520243852,-741.17,0.00013698,2]
[333799706,1722520243861,-500.0,0.00013698,2]
[333799707,1722520243870,-500.0,0.00013698,2]
[333799708,1722520243880,-2449.34,0.00013698,2]
[333799709,1722520243890,-500.0,0.00013698,2]
[333799710,1722520243900,-500.0,0.00013698,2]
[333799711,1722520243910,-1580.82,0.00013698,2]
[333799712,1722520243919,-500.0,0.00013698,2]
[333799713,1722520243929,-640.23,0.00013698,2]
[333799714,1722520243938,-500.0,0.00013698,2]
[333799715,1722520243949,-600.31,0.00013698,2]
[333799716,1722520243959,-500.0,0.00013698,2]
[333799717,1722520243969,-500.0,0.00013698,2]
[333799718,1722520243978,-1207.36,0.00013698,2]
[333799719,1722520243988,-500.0,0.00013698,2]
[333799720,1722520243997,-500.0,0.00013698,2]
[333799721,1722520244007,-500.0,0.00013698,2]
[333799722,1722520244017,-500.0,0.00013698,2]
[333799723,1722520244027,-500.0,0.00013698,2]
[333799724,1722520244037,-500.0,0.00013698,2]
[333799725,1722520244046,-1891.0,0.00013698,2]
[333799726,1722520244055,-500.0,0.00013698,2]
[333799727,1722520244064,-500.0,0.00013698,2]
[333799728,1722520244074,-500.0,0.00013698,2]
[333799729,1722520244083,-2780.47,0.00013698,2]
[333799730,1722520244094,-1274.95,0.00013698,2]
[333799731,1722520244103,-164.153976,0.0001382,2]
[333799732,1722520244113,-150.0,0.000139,30]
[333799733,1722520244122,-29269.8200153,0.00013962,2]
[333799734,1722520244133,-500.48042734,0.00013972,2]
[333799735,1722520244143,-500.0,0.00013972,2]
[333799736,1722520244154,-500.0,0.00013972,2]
[333799737,1722520244164,-500.0,0.00013972,2]
[333799738,1722520244174,-500.0,0.00013972,2]
[333799739,1722520244184,-500.0,0.00013972,2]
[333799740,1722520244194,-500.0,0.00013972,2]
[333799741,1722520244211,-500.0,0.00013972,2]
[333799742,1722520244220,-500.0,0.00013972,2]
[333799743,1722520244231,-500.0,0.00013972,2]
[333799744,1722520244240,-500.0,0.00013972,2]
[333799745,1722520244251,-500.0,0.00013972,2]
[333799746,1722520244261,-206.97460583,0.00013972,2]
[333799747,1722520244271,-500.0,0.00013972,2]
[333799748,1722520244281,-612.83,0.00013972,2]
[333799749,1722520244291,-500.0,0.00013972,2]
[333799750,1722520244302,-500.0,0.00013972,2]
[333799751,1722520244312,-500.0,0.00013972,2]
[333799752,1722520244321,-630.63,0.00013972,2]
[333799753,1722520244331,-500.0,0.00013972,2]